bitfinex/quotes_SOLUSD_20240725
["timestamp","ask_amount","ask_price","bid_price","bid_amount"]
[1721875678107,1.46946625,170.21,170.12,1.35977722]
[1721875678404,1.46946278,170.2,170.12,1.35977722]
[1721875678984,5.8761,170.18,170.12,1.35977722]
[1721875679696,5.8757,170.2,170.12,1.35977722]
[1721875680007,45.11,170.26,170.12,2.5351941]
[1721875680196,1.46890168,170.26,170.21,5.875]
[1721875680697,1.46858803,170.33,170.21,16.04605822]
[1721875680908,14.6797,170.31,170.22,1.35897838]
[1721875681083,46.57870293,170.3,170.22,1.35897838]
[1721875681280,5.8744,170.23,170.22,1.35897838]
[1721875681493,5.8739,170.25,170.22,1.35897838]
[1721875681688,1.46873235,170.29,170.22,1.35897838]
[1721875681689,45.11,170.3,170.22,1.35897838]
[1721875681917,7.34092541,170.29,170.22,1.35897838]
[1721875682123,1.46862541,170.29,170.22,1.35897838]
[1721875682294,5.8731,170.27,170.22,1.35897838]
[1721875682503,1.46868337,170.29,170.24,5.8739]
[1721875682812,1.46868337,170.29,170.22,1.35897838]
[1721875682813,5.8731,170.27,170.22,1.35897838]
[1721875682987,45.11,170.3,170.22,1.35897838]
[1721875683192,1.46840601,170.29,170.23,5.8743]
[1721875683388,5.8717,170.31,170.22,1.35897838]
[1721875683605,5.8725,170.29,170.22,7.23347838]
[1721875683811,5.8744,170.23,170.22,1.35897838]
[1721875684109,1.46848574,170.28,170.22,1.35897838]
[1721875684286,5.8734,170.26,170.22,1.35897838]
[1721875684484,5.8725,170.29,170.22,7.23347838]
[1721875684686,1.46856956,170.32,170.22,1.35897838]
[1721875685508,5.8739,170.25,170.22,1.35897838]
[1721875686087,5.8739,170.25,170.15,16.1532]
[1721875686088,45.11,170.26,170.15,16.1532]
[1721875686289,5.8768,170.16,170.15,1.35953747]
[1721875686488,45.11,170.22,170.08,14.6986]
[1721875686489,5.8775,170.14,170.08,20.5781]
[1721875686706,5.8775,170.14,170.07,22.7142]
[1721875686707,5.8779,170.13,170.09,1.36001705]
[1721875686898,7.34739863,170.13,170.09,1.36001705]
[1721875687104,1.46949863,170.13,170.07,6.2283]
[1721875687284,1.46949863,170.13,170.0,20.5878]
[1721875687285,1.46949863,170.13,170.0,14.7055]
[1721875687492,5.8771,170.15,170.01,2.53668169]
[1721875687720,5.8775,170.14,170.06,14.7002]
[1721875687922,59.7979,170.21,170.09,14.6977]
[1721875688090,45.0,170.27,169.99,23.0216]
[1721875688091,45.11,170.24,170.1,1.3599371]
[1721875688437,16.15636646,170.23,170.11,14.6958]
[1721875688593,5.8757,170.2,170.11,16.05565715]
[1721875688946,45.11,170.24,170.16,20.5683]
[1721875689226,1.46860078,170.27,170.2,20.5632]
[1721875689394,1.46860078,170.27,170.2,21.92233807]
[1721875689591,5.8766,170.17,170.15,6.2339]
[1721875689799,1.4686838,170.26,169.95,6.15150112]
[1721875689800,45.11,170.21,170.06,6.2339]
[1721875690006,5.8798,170.08,170.06,1.36025697]
[1721875690312,5.8799,170.07,170.0,14.7051]
[1721875690518,1.47011763,170.07,170.0,1.36073706]
[1721875690694,1.47011763,170.07,169.99,6.2339]
[1721875690892,5.8822,170.01,169.95,14.7095]
[1721875691112,5.8822,170.01,169.89,23.75385603]
[1721875691113,46.5808997,170.0,169.9,14.7136]
[1721875691317,46.5808997,170.0,169.89,6.2339]
[1721875691318,5.8855,169.91,169.89,6.2339]
[1721875691608,45.11,169.96,169.81,5.8886]
[1721875691609,45.11,169.96,169.81,7.41123394]
[1721875691811,1.47166742,169.97,169.89,5.8859]
[1721875692019,1.47133328,169.96,169.89,1.36161811]
[1721875692199,5.8839,169.96,169.89,1.36161811]
[1721875692399,45.11,170.01,169.9,1.36153797]
[1721875692917,5.8828,169.99,169.92,5.885]
[1721875693228,46.58103209,170.05,169.93,16.0729976]
[1721875693395,5.8817,170.02,169.94,7.24551749]
[1721875693592,45.11,170.05,169.97,14.7084]
[1721875693826,5.8805,170.06,169.97,14.7084]
[1721875694190,1.47089854,170.09,169.99,5.8825]
[1721875694191,5.8798,170.08,169.99,5.8825]
[1721875694394,5.8798,170.08,170.0,5.8822]
[1721875694612,5.8798,170.08,170.0,8.41918555]
[1721875694811,1.47036806,170.07,170.0,1.36073706]
[1721875695002,1.47036806,170.07,169.87,5.8866]
[1721875695003,5.8839,169.96,169.87,5.8866]
[1721875695209,1.47036806,170.07,169.92,5.8848]
[1721875695419,1.47036806,170.07,169.93,1.3612976]
[1721875695617,45.11,170.0,169.82,14.7214]
[1721875695833,45.11,169.96,169.83,1.36209916]
[1721875696131,21.47166247,169.99,169.83,1.36209916]
[1721875696132,5.8878,169.85,169.83,1.36209916]
[1721875696309,1.47218581,169.91,169.81,6.2339]
[1721875696510,1.47218581,169.91,169.77,14.7255]
[1721875696511,1.47218581,169.91,169.72,6.1271]
[1721875696708,45.11,169.83,169.72,7.49008197]
[1721875696906,45.11,169.83,169.7,16.0897]
[1721875696907,5.8911,169.75,169.66,20.629]
[1721875697125,45.11,169.79,169.66,20.629]
[1721875697126,1.4732624,169.74,169.66,16.09856399]
[1721875697316,7.36245102,169.8,169.7,14.7315]
[1721875697637,45.11,169.83,169.72,5.8919]
[1721875697811,1.47286492,169.85,169.74,14.7281]
[1721875698017,1.47286492,169.85,169.75,1.36274109]
[1721875698738,45.11,169.82,169.75,1.36274109]
[1721875699044,5.8918,169.73,169.66,14.7353]
[1721875699232,5.8929,169.7,169.66,1.36346399]
[1721875699545,45.11,169.74,169.66,1.36346399]
[1721875699712,5.8918,169.73,169.66,1.36346399]
[1721875699911,5.8921,169.72,169.66,1.36346399]
[1721875700130,45.11,169.74,169.66,1.36346399]
[1721875700330,1.47335403,169.73,169.66,1.36346399]
[1721875700515,5.8921,169.72,169.66,1.36346399]
[1721875700944,45.11,169.78,169.67,1.36338363]
[1721875701123,1.4733108,169.77,169.67,1.36338363]
[1721875701327,5.8917,169.73,169.67,1.36338363]
[1721875701531,46.58332469,169.78,169.67,1.36338363]
[1721875701710,45.11,169.78,169.73,5.8916]
[1721875702020,45.11,169.78,169.69,14.7321]
[1721875702208,5.8913,169.75,169.7,1.36314261]
[1721875703015,7.3635332,169.77,169.7,1.36314261]
[1721875703208,45.11,169.78,169.7,1.36314261]
[1721875703410,51.0001,169.78,169.7,1.36314261]
[1721875703623,45.11,169.78,169.7,1.36314261]
[1721875703832,51.0003,169.78,169.71,5.8921]
[1721875704023,51.0003,169.78,169.7,1.36314261]
[1721875704422,5.8913,169.75,169.7,1.36314261]
[1721875704733,45.11,169.78,169.7,1.36314261]
[1721875704932,5.889,169.81,169.74,5.8913]
[1721875705325,1.47276347,169.81,169.74,1.36282138]
[1721875705634,5.8908,169.76,169.74,1.36282138]
[1721875705834,1.47291823,169.75,169.74,1.36282138]
[1721875706037,1.47291823,169.75,169.64,14.737]
[1721875706038,5.8927,169.7,169.64,20.6315]
[1721875706535,1.47291823,169.75,169.64,20.6315]
[1721875706536,5.8924,169.71,169.65,1.36354436]
[1721875706732,45.11,169.74,169.65,7.25794436]
[1721875706733,7.3653006,169.73,169.65,7.25794436]
[1721875707035,5.8907,169.76,169.68,5.8932]
[1721875707241,5.8902,169.78,169.71,5.8923]
[1721875707412,5.8903,169.77,169.7,14.7314]
[1721875707612,14.719,169.85,169.7,16.09454261]
[1721875707613,1.47295691,169.81,169.7,16.09454261]
[1721875707820,5.89,169.78,169.7,21.98694261]
[1721875708023,5.8906,169.76,169.7,16.09454261]
[1721875708516,5.891,169.75,169.7,16.09454261]
[1721875708712,1.47295691,169.81,169.71,5.8921]
[1721875709018,1.47295691,169.81,169.73,14.7286]
[1721875709230,5.8894,169.8,169.73,21.98310167]
[1721875709536,5.8894,169.8,169.73,1.36290167]
[1721875709537,5.8905,169.77,169.73,1.36290167]
[1721875709734,7.36273975,169.79,169.73,1.36290167]
[1721875709921,5.8902,169.78,169.73,1.36290167]
[1721875710234,16.094543,169.91,169.73,1.36290167]
[1721875710235,1.47286133,169.9,169.74,1.17828907]
[1721875710437,45.11,170.11,169.81,45.11]
[1721875710617,45.11,170.02,169.82,47.5390256]
[1721875710819,45.11,170.02,169.83,42.5391277]
[1721875711139,45.11,170.02,169.96,5.8835]
[1721875711311,45.11,170.02,169.93,14.7117]
[1721875711514,52.46252765,170.02,169.94,7.24551749]
[1721875711713,52.46252765,170.02,169.93,14.7117]
[1721875711714,5.8807,170.05,169.98,5.8829]
[1721875711939,45.11,170.06,169.98,1.36089717]
[1721875712143,50.989,170.1,170.02,5.8815]
[1721875712328,46.5804636,170.14,170.03,1.36049697]
[1721875712648,5.8784,170.12,170.05,20.5817]
[1721875713014,5.8784,170.12,170.05,14.7013]
[1721875713230,5.8784,170.12,170.05,16.06163696]
[1721875713640,1.46997157,170.11,170.05,1.36033696]
[1721875713826,5.8821,170.01,169.94,6.0605]
[1721875714036,5.8821,170.01,169.81,20.0]
[1721875714037,5.8833,169.97,169.96,30.0]
[1721875714217,1.47085096,170.0,169.86,7.69840392]
[1721875714418,1.47085096,170.0,169.9,5.8854]
[1721875714617,5.8828,169.99,169.91,7.24685783]
[1721875714840,1.47085096,170.0,169.91,7.24685783]
[1721875714841,1.47085096,170.0,169.92,14.7127]
[1721875715037,21.47116127,170.01,169.92,16.07407771]
[1721875715224,21.47104931,170.01,169.92,1.36137771]
[1721875715832,21.47104931,170.01,169.92,7.24637771]
[1721875716036,5.8831,169.98,169.92,1.36137771]
[1721875716625,1.47118259,170.0,169.92,1.36137771]
[1721875716815,5.8829,169.99,169.92,1.36137771]
[1721875717022,50.9917,170.02,169.95,5.884]
[1721875717217,45.11,170.06,169.95,5.8838]
[1721875717452,1.47073287,170.05,169.94,14.7103]
[1721875717820,5.8815,170.03,169.95,1.3611374]
[1721875718022,5.8834,169.97,169.95,1.3611374]
[1721875718232,0.4913556,170.16,169.95,1.3611374]
[1721875718434,0.4913556,170.16,170.11,5.8783]
[1721875718630,1.96105586,170.16,169.96,31.17601529]
[1721875718831,1.96141765,170.16,170.04,5.8808]
[1721875719022,1.96141765,170.16,170.05,1.36033696]
[1721875719222,5.8796,170.08,170.05,1.36033696]
[1721875719423,16.65381765,170.16,170.05,1.36033696]
[1721875719627,45.11,170.12,169.99,5.8823]
[1721875719858,14.6979,170.1,170.0,1.36073706]
[1721875720148,45.11,170.08,169.97,5.8832]
[1721875720332,45.11,170.08,169.94,14.7106]
[1721875720333,5.8816,170.02,169.95,5.8838]
[1721875720520,1.47069176,170.07,169.94,14.7106]
[1721875720728,1.47069176,170.07,169.95,1.3611374]
[1721875720729,45.11,170.04,169.95,1.3611374]
[1721875721042,1.47082386,170.04,169.95,1.3611374]
[1721875721225,20.0,170.07,169.98,5.8829]
[1721875721425,5.8812,170.04,169.98,1.36089717]
[1721875721625,5.8808,170.05,169.98,1.36089717]
[1721875721845,1.47054209,170.07,169.98,1.36089717]
[1721875722052,66.58053677,170.08,169.99,14.7059]
[1721875722260,5.8806,170.05,169.99,14.7059]
[1721875722429,5.8806,170.05,169.98,1.36089717]
[1721875722625,16.17048346,170.07,169.98,1.36089717]
[1721875722934,45.11,170.08,170.0,5.882]
[1721875722935,50.9898,170.08,170.0,5.882]
[1721875723130,45.11,170.08,170.0,7.24273706]
[1721875723341,50.9897,170.08,170.0,7.24273706]
[1721875723823,5.8791,170.1,170.01,1.17630331]
[1721875724026,1.47011867,170.09,170.01,1.36065702]
[1721875724348,5.8808,170.05,170.01,1.36065702]
[1721875724544,5.8802,170.07,170.01,1.36065702]
[1721875724745,5.8801,170.07,170.01,1.36065702]
[1721875724963,5.8807,170.05,170.01,1.36065702]
[1721875725122,59.8083,170.09,170.01,1.36065702]
[1721875725325,5.8824,170.0,169.94,14.7102]
[1721875725525,45.11,170.05,169.9,1.17627689]
[1721875725748,20.0,170.04,169.9,1.17627689]
[1721875725926,5.8821,170.01,169.94,5.8843]
[1721875726123,20.0,170.04,169.93,1.17662282]
[1721875726465,45.11,170.01,169.94,1.36121749]
[1721875726625,5.8839,169.96,169.94,1.36121749]
[1721875727022,7.35521285,169.96,169.94,1.36121749]
[1721875727244,5.885,169.93,169.86,6.5215]
[1721875727549,5.885,169.93,169.87,1.36177842]
[1721875727739,1.47132615,169.96,169.87,1.36177842]
[1721875728052,5.8864,169.89,169.78,7.83478309]
[1721875728350,5.8856,169.91,169.83,5.8881]
[1721875728548,5.8856,169.91,169.84,8.42700878]
[1721875728852,45.11,169.98,169.85,2.53922892]
[1721875729059,5.8837,169.96,169.88,14.7161]
[1721875729245,50.9932,169.98,169.89,7.24741811]
[1721875729464,14.7041,170.02,169.8,30.0]
[1721875729465,45.11,170.02,169.91,14.7129]
[1721875729627,50.9919,170.02,169.94,5.8843]
[1721875729833,5.8821,170.01,169.93,1.1766993]
[1721875730037,45.11,170.02,169.94,1.36121749]
[1721875730541,5.8831,169.98,169.94,1.36121749]
[1721875730932,5.8814,170.03,169.96,5.8836]
[1721875731138,5.8814,170.03,169.95,14.7101]
[1721875731139,5.8811,170.04,169.97,53.42071255]
[1721875731632,5.8811,170.04,169.98,1.36089717]
[1721875732160,45.11,170.1,170.01,5.8819]
[1721875732338,45.11,170.1,169.98,16.06779717]
[1721875732651,45.11,170.14,169.99,46.17619652]
[1721875732855,5.8803,170.06,170.0,45.0]
[1721875733039,46.58024386,170.1,170.01,1.36065702]
[1721875733541,45.11,170.06,169.92,14.7121]
[1721875733747,1.47075319,170.05,169.93,1.3612976]
[1721875733950,5.8837,169.96,169.93,1.3612976]
[1721875734154,5.8823,170.01,169.93,1.3612976]
[1721875734472,5.882,170.01,169.94,7.06079987]
[1721875734764,14.6995,170.08,169.94,7.06079987]
[1721875734765,5.8815,170.03,169.95,1.3611374]
[1721875735079,5.8802,170.07,169.99,5.8826]
[1721875735247,5.8803,170.06,170.0,46.36073706]
[1721875735440,5.8807,170.05,170.01,1.36065702]
[1721875736345,5.8802,170.07,170.01,1.36065702]
[1721875736547,2.49440268,170.15,170.03,5.8812]
[1721875736548,45.11,170.14,170.03,5.8812]
[1721875736733,45.11,170.14,170.04,2.53643191]
[1721875736937,0.4913556,170.16,170.05,2.53619277]
[1721875737154,5.8782,170.12,170.06,1.36025697]
[1721875737348,1.46968957,170.11,170.06,1.36025697]
[1721875737564,0.4913556,170.16,170.06,1.36025697]
[1721875737565,14.6961,170.12,170.06,1.36025697]
[1721875737754,14.6961,170.12,169.99,14.7064]
[1721875737755,1.47015167,170.11,169.99,14.7064]
[1721875737940,5.8805,170.06,170.0,1.36073706]
[1721875738136,1.96161635,170.16,170.01,1.1762086]
[1721875738337,5.8801,170.07,170.02,1.36057699]
[1721875739041,1.47017402,170.12,170.02,1.36057699]
[1721875739259,5.8811,170.04,170.02,1.36057699]
[1721875739563,21.47017402,170.12,170.02,1.36057699]
[1721875739746,21.47017402,170.12,169.93,14.7117]
[1721875739747,45.11,170.1,169.93,14.7117]
[1721875739953,14.7005,170.07,169.96,5.8836]
[1721875740148,14.7005,170.07,169.93,14.7117]
[1721875740149,45.11,170.1,169.97,2.53718493]
[1721875740452,5.8801,170.07,170.01,5.8819]
[1721875740789,5.8801,170.07,170.02,1.36057699]
[1721875741444,5.8795,170.09,170.02,1.36057699]
[1721875741646,5.8795,170.09,170.02,7.24217699]
[1721875741839,5.8787,170.11,170.03,15.87901456]
[1721875742084,5.8781,170.13,170.04,45.0]
[1721875742378,0.4913556,170.16,170.11,5.8783]
[1721875742673,1.96091703,170.16,170.06,5.8802]
[1721875742872,6.3682556,170.16,170.07,47.53589235]
[1721875743172,6.3682556,170.16,170.08,1.36009702]
[1721875743173,0.4913556,170.16,170.08,1.36009702]
[1721875743476,68.669693,170.31,170.1,20.0]
[1721875743771,68.669693,170.31,170.08,46.36009702]
[1721875743772,68.669693,170.31,170.21,14.6871]
[1721875744019,68.669693,170.31,170.22,2.53353195]
[1721875744020,23.559693,170.31,170.22,2.53353195]
[1721875744273,0.8074846,170.33,170.23,1.35889855]
[1721875744479,5.872,170.3,170.23,1.35889855]
[1721875744647,5.8715,170.32,170.23,53.40781437]
[1721875744850,0.8074846,170.33,170.23,52.23319855]
[1721875745065,1.46826053,170.32,170.23,1.35889855]
[1721875745246,5.8737,170.25,170.23,1.35889855]
[1721875745871,5.8742,170.24,170.17,14.691]
[1721875746040,5.8742,170.24,170.18,1.3592978]
[1721875746241,59.793,170.27,170.18,1.3592978]
[1721875746562,5.8755,170.2,170.18,1.3592978]
[1721875746747,20.0,170.26,170.18,1.3592978]
[1721875746748,1.46896014,170.26,170.18,1.3592978]
[1721875747078,5.8756,170.2,170.18,1.3592978]
[1721875747280,59.793,170.27,170.05,16.5063]
[1721875747281,21.46915352,170.19,170.06,1.17532281]
[1721875747570,45.11,170.26,170.07,2.5359233]
[1721875747810,45.11,170.26,170.14,14.6937]
[1721875747961,5.8741,170.24,170.15,2.53457304]
[1721875748167,5.8745,170.23,170.16,1.35945757]
[1721875748395,46.57875957,170.26,170.16,1.35945757]
[1721875748590,5.8758,170.19,170.16,1.35945757]
[1721875749062,46.57875957,170.26,170.17,5.8763]
[1721875749063,5.8738,170.25,170.17,5.8763]
[1721875749266,5.8746,170.23,170.18,2.53430378]
[1721875749503,5.8746,170.23,170.19,1.35921793]
[1721875749668,45.11,170.26,170.19,1.35921793]
[1721875749669,5.8738,170.25,170.19,1.35921793]
[1721875749995,46.57875873,170.3,170.19,7.23491793]
[1721875750198,5.8738,170.25,170.19,1.35921793]
[1721875750495,5.8741,170.24,170.19,1.35921793]
[1721875750692,5.874,170.25,170.19,1.35921793]
[1721875750904,1.46865337,170.35,170.2,1.17492269]
[1721875751070,14.6756,170.36,170.18,45.0]
[1721875751071,5.8715,170.32,170.25,5.8736]
[1721875751271,5.873,170.27,170.26,1.35865911]
[1721875752574,5.8722,170.3,170.26,1.35865911]
[1721875752991,0.8074846,170.33,170.26,1.35865911]
[1721875753371,5.8716,170.31,170.26,1.35865911]
[1721875753683,0.8074846,170.33,170.26,16.04205911]
[1721875754001,16.95320799,170.33,170.26,1.35865911]
[1721875754191,5.873,170.27,170.26,1.35865911]
[1721875754572,2.27530799,170.33,170.16,6.5441]
[1721875754891,2.27530799,170.33,170.17,7.768e-05]
[1721875754892,5.8758,170.19,170.17,7.768e-05]
[1721875755188,5.8758,170.19,170.08,6.5441]
[1721875755189,5.8789,170.1,170.08,6.5441]
[1721875755579,14.6918,170.17,170.08,6.5441]
[1721875755772,14.6878,170.21,170.09,1.17541943]
[1721875755977,5.8779,170.13,170.08,6.5441]
[1721875756175,14.6916,170.17,170.08,6.5441]
[1721875756497,20.0,170.16,170.09,1.1756493]
[1721875756691,5.878,170.13,170.09,1.1756493]
[1721875756991,16.15730829,170.21,170.08,6.5441]
[1721875757303,14.6916,170.17,170.08,6.5441]
[1721875757590,21.46939354,170.2,170.08,13.59911483]
[1721875757591,5.8774,170.15,170.08,13.59911483]
[1721875757778,5.8767,170.17,170.1,5.8788]
[1721875757974,5.8767,170.17,170.11,1.17530561]
[1721875758198,45.52355148,170.25,170.12,5.8779]
[1721875758375,44.0544,170.25,170.13,1.17513705]
[1721875758693,14.6843,170.25,170.13,1.17513705]
[1721875758894,5.8755,170.2,170.13,7.05283705]
[1721875759196,16.15315481,170.25,170.14,45.0]
[1721875759197,5.8758,170.19,170.14,45.0]
[1721875759399,45.11,170.26,170.15,14.6927]
[1721875759698,5.8758,170.19,170.14,45.0]
[1721875760000,5.8753,170.21,170.14,45.0]
[1721875760202,29.3606,170.3,170.14,45.0]
[1721875760203,1.4688512,170.29,170.18,5.876]
[1721875760378,14.6822,170.28,170.15,1.17485947]
[1721875760709,5.8731,170.27,170.2,5.8751]
[1721875761001,5.8738,170.25,170.21,46.17463083]
[1721875761213,45.11,170.3,170.17,14.6906]
[1721875761214,5.8748,170.22,170.17,14.6906]
[1721875761395,5.8755,170.2,170.18,45.0]
[1721875761599,14.6838,170.26,170.15,1.17477301]
[1721875761773,5.8751,170.21,170.15,7.05187301]
[1721875761981,5.8761,170.18,170.16,45.0]
[1721875762276,5.8761,170.18,170.14,45.0]
[1721875762277,14.6838,170.26,170.14,50.8774]
[1721875762482,5.875,170.22,170.15,5.8771]
[1721875762704,5.875,170.22,170.16,45.0]
[1721875762904,1.46872271,170.34,170.17,1.17497817]
[1721875763078,5.8721,170.3,170.23,14.6859]
[1721875763284,1.46804831,170.36,170.24,45.0]
[1721875763496,5.8705,170.35,170.28,5.8724]
[1721875763677,1.46811742,170.36,170.24,59.6846]
[1721875763678,5.8713,170.32,170.24,59.6846]
[1721875763880,14.6754,170.36,170.25,1.17442528]
[1721875764081,14.6754,170.36,170.24,59.6846]
[1721875764575,5.872,170.3,170.24,65.5585]
[1721875764777,14.6754,170.36,170.24,65.5585]
[1721875764778,5.8723,170.29,170.24,45.0]
[1721875765101,1.4680129,170.35,170.23,45.0]
[1721875765102,62.06350116,170.33,170.23,45.0]
[1721875765284,1.46827782,170.32,170.17,1.17462225]
[1721875765484,1.46827782,170.32,170.19,14.6889]
[1721875765688,5.8726,170.28,170.21,5.8748]
[1721875765897,5.8737,170.25,170.19,20.5645]
[1721875766089,5.8737,170.25,170.19,14.6889]
[1721875766285,14.6803,170.3,170.15,5.8768]
[1721875766489,14.6829,170.27,170.15,1.17481598]
[1721875766688,16.1515608,170.27,170.15,1.17481598]
[1721875766891,14.6794,170.31,170.17,14.6907]
[1721875767116,5.8733,170.27,170.18,1.17469949]
[1721875767413,14.6794,170.31,170.2,5.8754]
[1721875767414,5.8736,170.26,170.2,5.8754]
[1721875767613,5.8728,170.28,170.21,5.875]
[1721875767782,14.6794,170.31,170.2,1.17466143]
[1721875768111,5.8734,170.26,170.2,52.05006143]
[1721875768280,1.46832701,170.31,170.11,21.17466161]
[1721875768588,5.8756,170.2,170.13,14.6943]
[1721875768782,5.8749,170.22,170.15,5.8771]
[1721875768982,5.8749,170.22,170.13,15.86931629]
[1721875768983,1.46878258,170.26,170.14,1.17502606]
[1721875769202,5.8747,170.22,170.14,7.05215689]
[1721875769386,14.6846,170.25,170.1,1.17502631]
[1721875769590,29.3735,170.23,170.1,1.17502631]
[1721875769800,5.8778,170.13,170.1,1.17502631]
[1721875769992,14.6878,170.21,170.08,7.71946382]
[1721875770186,1.46907692,170.2,170.08,6.5441]
[1721875770504,5.8779,170.13,170.08,6.5441]
[1721875770807,14.6906,170.18,170.08,6.5441]
[1721875771002,1.46935455,170.27,170.08,7.71958364]
[1721875771206,16.15263792,170.26,170.11,14.6961]
[1721875771509,16.15263792,170.26,170.08,7.71958364]
[1721875771510,5.8775,170.14,170.08,7.71935635]
[1721875771692,5.877,170.16,170.08,13.59875635]
[1721875771887,14.689,170.2,170.08,7.71935635]
[1721875772204,45.11,170.18,170.0,20.0]
[1721875772386,1.46967031,170.17,170.02,14.7037]
[1721875772585,5.8786,170.11,170.02,15.87943953]
[1721875772807,5.8786,170.11,170.03,5.8809]
[1721875772992,14.6934,170.15,170.02,14.7037]
[1721875773195,45.11,170.13,170.01,6.6312]
[1721875773397,45.11,170.09,169.96,1.17617409]
[1721875773605,5.8808,170.05,169.95,14.7094]
[1721875773788,1.47041175,170.08,169.95,14.7094]
[1721875773986,20.0,170.08,169.98,14.7068]
[1721875774209,20.0,170.08,169.91,6.3107]
[1721875774210,20.0,170.08,169.92,1.17626927]
[1721875774399,7.35023659,170.07,169.99,5.8825]
[1721875774599,7.35023659,170.07,169.91,6.3107]
[1721875774600,1.02433538,170.11,170.0,15.88122989]
[1721875774795,5.8793,170.09,170.0,21.76322989]
[1721875774985,1.46999536,170.15,170.0,21.76322989]
[1721875775211,14.6953,170.13,169.95,15.88589629]
[1721875775520,45.11,170.1,169.96,5.8836]
[1721875775724,5.8805,170.06,169.96,1.17623881]
[1721875775940,46.58016798,170.14,170.04,5.8808]
[1721875776086,46.58016798,170.14,170.02,14.7033]
[1721875776295,61.27386798,170.14,170.02,20.5847]
[1721875776485,45.11,170.14,170.06,14.7006]
[1721875776689,5.8783,170.12,170.06,14.7006]
[1721875776889,1.46987189,170.11,170.02,5.8814]
[1721875777103,5.8793,170.09,170.01,14.7041]
[1721875777311,5.8788,170.11,170.02,45.0]
[1721875777491,46.96036521,170.19,170.05,14.7014]
[1721875777691,5.8776,170.14,170.07,5.8797]
[1721875777907,5.8779,170.13,170.05,20.5818]
[1721875778096,1.46969184,170.17,170.05,20.5818]
[1721875778097,1.46969184,170.17,170.06,45.0]
[1721875778297,14.6927,170.16,170.06,45.0]
[1721875778593,46.96036521,170.19,170.06,45.0]
[1721875778793,45.11,170.19,170.08,5.8793]
[1721875779109,45.11,170.19,170.07,20.5792]
[1721875779110,5.8775,170.14,170.07,20.5792]
[1721875779414,5.8779,170.13,170.08,45.0]
[1721875780124,61.26972629,170.19,170.04,5.8807]
[1721875780417,46.57952629,170.19,170.06,14.7]
[1721875780587,45.11,170.23,170.07,46.17561987]
[1721875780793,51.6453,170.28,170.07,46.17561987]
[1721875780794,1.46921249,170.27,170.13,14.6939]
[1721875781098,45.11,170.28,170.17,14.691]
[1721875781099,1.46887567,170.26,170.17,14.691]
[1721875781299,1.46887567,170.26,170.08,1.17533866]
[1721875781498,1.46887567,170.26,170.08,46.17549626]
[1721875781694,5.8745,170.23,170.08,46.17549626]
[1721875781905,5.8735,170.26,170.18,5.876]
[1721875782108,5.8737,170.25,170.18,5.876]
[1721875782409,5.8741,170.24,170.17,5.8764]
[1721875782811,5.8735,170.26,170.18,5.876]
[1721875783001,1.46866826,170.27,170.19,5.8755]
[1721875783201,1.4687202,170.29,170.19,5.8755]
[1721875783397,5.8735,170.26,170.17,21.74163504]
[1721875783596,5.8737,170.25,170.18,45.0]
[1721875783896,1.46866984,170.31,170.18,52.05083587]
[1721875784109,45.11,170.32,170.18,46.17493587]
[1721875784305,5.8717,170.31,170.24,5.8737]
[1721875784597,0.8074846,170.33,170.19,1.17454752]
[1721875784800,5.8717,170.31,170.19,1.17454752]
[1721875785003,5.8717,170.31,170.24,5.8739]
[1721875785198,2.2757552,170.33,170.18,45.0]
[1721875785396,2.2757552,170.33,170.19,1.17465276]
[1721875785397,2.27580055,170.33,170.19,1.17465276]
[1721875785606,5.8722,170.3,170.21,14.6875]
[1721875785904,5.8722,170.3,170.23,5.8743]
[1721875786122,5.8721,170.3,170.22,45.0]
[1721875786298,5.8725,170.29,170.22,50.8746]
[1721875786493,5.8729,170.28,170.22,45.0]
[1721875786700,2.27578173,170.33,170.16,14.6914]
[1721875787003,5.8739,170.25,170.18,5.8759]